[Event "*** Titled Tuesday Blitz"]
[Site "Chess.com"]
[Date "2020.12.01"]
[Round "1"]
[White "emiliochess"]
[Black "Gloomy_Wanderer"]
[Result "0-1"]
[WhiteElo "2354"]
[BlackElo "2699"]
[TimeControl "180+1"]
[EndTime "10:07:32 PST"]
[Termination "Gloomy_Wanderer won by checkmate"]

1. d4 {[%clk 0:03:00.9]} 1... Nf6 {[%clk 0:02:57.4]} 2. Bf4 {[%clk 0:03:01]}
2... e6 {[%clk 0:02:57]} 3. e3 {[%clk 0:03:01]} 3... b6 {[%clk 0:02:55.6]} 4.
Nf3 {[%clk 0:03:01.1]} 4... c5 {[%clk 0:02:53.1]} 5. c3 {[%clk 0:03:00.6]} 5...
Be7 {[%clk 0:02:52.8]} 6. Bd3 {[%clk 0:02:59.7]} 6... O-O {[%clk 0:02:52.6]} 7.
Nbd2 {[%clk 0:02:56.9]} 7... cxd4 {[%clk 0:02:52.6]} 8. exd4 {[%clk 0:02:56.1]}
8... Ba6 {[%clk 0:02:52.1]} 9. Bxa6 {[%clk 0:02:54.9]} 9... Nxa6 {[%clk
0:02:52.6]} 10. h3 {[%clk 0:02:55.1]} 10... d6 {[%clk 0:02:51.8]} 11. O-O {[%clk
0:02:54.8]} 11... h6 {[%clk 0:02:51.4]} 12. Re1 {[%clk 0:02:51.9]} 12... Qd7
{[%clk 0:02:47.1]} 13. Rc1 {[%clk 0:02:40.4]} 13... Rfc8 {[%clk 0:02:40.6]} 14.
a3 {[%clk 0:02:16.5]} 14... b5 {[%clk 0:02:39.3]} 15. Qb3 {[%clk 0:02:06.3]}
15... Nc7 {[%clk 0:02:38.5]} 16. Bg3 {[%clk 0:01:57.5]} 16... a6 {[%clk
0:02:38]} 17. Nf1 {[%clk 0:01:49.8]} 17... Ncd5 {[%clk 0:02:37.1]} 18. Ne3
{[%clk 0:01:49.7]} 18... Nb6 {[%clk 0:02:36.8]} 19. Rcd1 {[%clk 0:01:48.4]}
19... Bf8 {[%clk 0:02:34.5]} 20. Re2 {[%clk 0:01:34.9]} 20... Qc6 {[%clk
0:02:31.7]} 21. Nc2 {[%clk 0:01:27.7]} 21... Qc4 {[%clk 0:02:29.2]} 22. Qxc4
{[%clk 0:01:23.6]} 22... Nxc4 {[%clk 0:02:29.2]} 23. Ne3 {[%clk 0:01:24.3]}
23... Nb6 {[%clk 0:02:27.5]} 24. Kh2 {[%clk 0:01:22.2]} 24... a5 {[%clk
0:02:26.8]} 25. Nc2 {[%clk 0:01:12.2]} 25... Nfd5 {[%clk 0:02:25.1]} 26. Ne3
{[%clk 0:01:02.3]} 26... b4 {[%clk 0:02:20.6]} 27. Nxd5 {[%clk 0:00:45.7]} 27...
Nxd5 {[%clk 0:02:20.1]} 28. cxb4 {[%clk 0:00:41.6]} 28... axb4 {[%clk
0:02:19.8]} 29. axb4 {[%clk 0:00:35.4]} 29... Rab8 {[%clk 0:02:17.6]} 30. Nd2
{[%clk 0:00:34.7]} 30... Rc2 {[%clk 0:02:08.8]} 31. Ree1 {[%clk 0:00:26.3]}
31... Rxb4 {[%clk 0:02:04.1]} 32. Ne4 {[%clk 0:00:26.3]} 32... f5 {[%clk
0:01:51.8]} 33. Nxd6 {[%clk 0:00:20.6]} 33... f4 {[%clk 0:01:51.5]} 34. Rxe6
{[%clk 0:00:14.4]} 34... fxg3+ {[%clk 0:01:50.8]} 35. Kxg3 {[%clk 0:00:14.4]}
35... Rb3+ {[%clk 0:01:44.1]} 36. f3 {[%clk 0:00:08]} 36... Rbxb2 {[%clk
0:01:44]} 37. Rg1 {[%clk 0:00:08]} 37... Rxg2+ {[%clk 0:01:37.1]} 38. Rxg2
{[%clk 0:00:07.3]} 38... Rxg2+ {[%clk 0:01:38]} 39. Kxg2 {[%clk 0:00:07.7]}
39... Nf4+ {[%clk 0:01:38.5]} 40. Kf2 {[%clk 0:00:07.9]} 40... Nxe6 {[%clk
0:01:39.2]} 41. Ne4 {[%clk 0:00:08.8]} 41... Nxd4 {[%clk 0:01:38.9]} 42. Ke3
{[%clk 0:00:09.7]} 42... Ne6 {[%clk 0:01:38.2]} 43. f4 {[%clk 0:00:10.6]} 43...
g6 {[%clk 0:01:38.2]} 44. Kf3 {[%clk 0:00:11]} 44... Be7 {[%clk 0:01:36.9]} 45.
Kg4 {[%clk 0:00:11.3]} 45... h5+ {[%clk 0:01:34.4]} 46. Kf3 {[%clk 0:00:11.3]}
46... Kf7 {[%clk 0:01:34.4]} 47. Ng3 {[%clk 0:00:11.8]} 47... Nd4+ {[%clk
0:01:34.4]} 48. Ke4 {[%clk 0:00:12]} 48... Bh4 {[%clk 0:01:20.9]} 49. Nxh5
{[%clk 0:00:08]} 49... Nf5 {[%clk 0:01:17.8]} 50. Nf6 {[%clk 0:00:01.8]} 50...
Bxf6 {[%clk 0:01:17.3]} 51. Kf3 {[%clk 0:00:02.2]} 51... Kg7 {[%clk 0:01:15.9]}
52. Kg4 {[%clk 0:00:03.1]} 52... Kh6 {[%clk 0:01:16.2]} 53. h4 {[%clk
0:00:03.5]} 53... Bxh4 {[%clk 0:01:16]} 54. Kh3 {[%clk 0:00:03.7]} 54... Kh5
{[%clk 0:01:16.3]} 55. Kg2 {[%clk 0:00:03.9]} 55... Kg4 {[%clk 0:01:17.1]} 56.
Kh2 {[%clk 0:00:04.2]} 56... Kxf4 {[%clk 0:01:18]} 57. Kg2 {[%clk 0:00:05.1]}
57... g5 {[%clk 0:01:18.3]} 58. Kh3 {[%clk 0:00:06]} 58... g4+ {[%clk
0:01:19.2]} 59. Kg2 {[%clk 0:00:06.7]} 59... Ne3+ {[%clk 0:01:18.1]} 60. Kh2
{[%clk 0:00:06.9]} 60... Kf3 {[%clk 0:01:17.5]} 61. Kg1 {[%clk 0:00:07.7]} 61...
g3 {[%clk 0:01:16.8]} 62. Kh1 {[%clk 0:00:08.6]} 62... g2+ {[%clk 0:01:16.5]}
63. Kh2 {[%clk 0:00:09.5]} 63... Bf2 {[%clk 0:01:05]} 64. Kh3 {[%clk 0:00:09.6]}
64... Nd5 {[%clk 0:01:02.5]} 65. Kh2 {[%clk 0:00:08.3]} 65... g1=Q+ {[%clk
0:01:01.7]} 66. Kh3 {[%clk 0:00:09.2]} 66... Nf4# {[%clk 0:01:01.7]} 0-1

[Event "*** Titled Tuesday Blitz"]
[Site "Chess.com"]
[Date "2020.12.01"]
[Round "1"]
[White "GMStefanova"]
[Black "glebus008"]
[Result "1-0"]
[WhiteElo "2559"]
[BlackElo "2236"]
[TimeControl "180+1"]
[EndTime "10:07:33 PST"]
[Termination "GMStefanova won on time"]

1. d4 {[%clk 0:02:59.6]} 1... d5 {[%clk 0:02:50.9]} 2. Bf4 {[%clk 0:02:56.3]}
2... c5 {[%clk 0:02:50]} 3. e3 {[%clk 0:02:55.6]} 3... Nc6 {[%clk 0:02:49.8]} 4.
c3 {[%clk 0:02:43.7]} 4... Nf6 {[%clk 0:02:48.9]} 5. Nd2 {[%clk 0:02:40.9]} 5...
cxd4 {[%clk 0:02:46.6]} 6. exd4 {[%clk 0:02:40.1]} 6... Bg4 {[%clk 0:02:46.3]}
7. Qb3 {[%clk 0:02:33]} 7... Qc8 {[%clk 0:02:45.1]} 8. h3 {[%clk 0:02:25.5]}
8... Bh5 {[%clk 0:02:43.8]} 9. Ngf3 {[%clk 0:02:15.2]} 9... e6 {[%clk 0:02:42]}
10. g4 {[%clk 0:02:02.9]} 10... Bg6 {[%clk 0:02:41.3]} 11. Ne5 {[%clk
0:02:02.6]} 11... Be7 {[%clk 0:02:04]} 12. Be2 {[%clk 0:01:54.1]} 12... O-O
{[%clk 0:01:23]} 13. h4 {[%clk 0:01:53.5]} 13... h6 {[%clk 0:00:51.2]} 14. Nxg6
{[%clk 0:01:50.5]} 14... fxg6 {[%clk 0:00:51.8]} 15. Be3 {[%clk 0:01:46.2]}
15... Kh8 {[%clk 0:00:36.8]} 16. g5 {[%clk 0:01:44.3]} 16... Nh5 {[%clk
0:00:25]} 17. gxh6 {[%clk 0:01:39.4]} 17... Nf4 {[%clk 0:00:23.5]} 18. hxg7+
{[%clk 0:01:32.6]} 18... Kxg7 {[%clk 0:00:24.4]} 19. Bxf4 {[%clk 0:01:24.3]}
19... Rxf4 {[%clk 0:00:25.3]} 20. h5 {[%clk 0:01:20.2]} 20... g5 {[%clk
0:00:25]} 21. h6+ {[%clk 0:01:17.6]} 21... Kh8 {[%clk 0:00:24.3]} 22. Qb5 {[%clk
0:00:42.6]} 22... Qc7 {[%clk 0:00:19]} 23. Qd3 {[%clk 0:00:39.7]} 23... Raf8
{[%clk 0:00:19.3]} 24. Rf1 {[%clk 0:00:35.7]} 24... e5 {[%clk 0:00:17.4]} 25.
dxe5 {[%clk 0:00:32.9]} 25... Nxe5 {[%clk 0:00:14.8]} 26. Qg3 {[%clk 0:00:29.6]}
26... Bf6 {[%clk 0:00:04.7]} 27. O-O-O {[%clk 0:00:24]} 27... Qa5 {[%clk
0:00:04.2]} 28. Kb1 {[%clk 0:00:23.2]} 28... Ra4 {[%clk 0:00:02.7]} 29. a3
{[%clk 0:00:22.6]} 29... Rxa3 {[%clk 0:00:02.7]} 30. bxa3 {[%clk 0:00:22.4]}
30... Qxa3 {[%clk 0:00:03.6]} 31. Rc1 {[%clk 0:00:18.5]} 31... Rc8 {[%clk
0:00:01]} 32. Rc2 {[%clk 0:00:18.3]} 32... Rc6 {[%clk 0:00:01.9]} 33. Rb2 {[%clk
0:00:18.3]} 33... Rb6 {[%clk 0:00:02.6]} 34. Rxb6 {[%clk 0:00:18.1]} 34... axb6
{[%clk 0:00:03.5]} 35. Rc1 {[%clk 0:00:18.3]} 35... Nc4 {[%clk 0:00:03.6]} 36.
Nxc4 {[%clk 0:00:18]} 36... dxc4 {[%clk 0:00:04]} 37. Qb8+ {[%clk 0:00:17.9]}
37... Kh7 {[%clk 0:00:03.4]} 38. Qxb7+ {[%clk 0:00:17.5]} 38... Kxh6 {[%clk
0:00:03.7]} 39. Qxb6 {[%clk 0:00:17.1]} 39... Kg6 {[%clk 0:00:01.7]} 40. Bxc4
{[%clk 0:00:16]} 1-0

[Event "*** Titled Tuesday Blitz"]
[Site "Chess.com"]
[Date "2020.12.01"]
[Round "1"]
[White "Shuvalov"]
[Black "Beca95"]
[Result "0-1"]
[WhiteElo "2439"]
[BlackElo "2917"]
[TimeControl "180+1"]
[EndTime "10:07:35 PST"]
[Termination "Beca95 won by resignation"]

1. Nf3 {[%clk 0:02:53.2]} 1... g6 {[%clk 0:02:53.1]} 2. c4 {[%clk 0:02:52.7]}
2... Bg7 {[%clk 0:02:52.1]} 3. d4 {[%clk 0:02:52.8]} 3... d6 {[%clk 0:02:51.6]}
4. Nc3 {[%clk 0:02:52.8]} 4... Nd7 {[%clk 0:02:50.3]} 5. e4 {[%clk 0:02:50.8]}
5... e5 {[%clk 0:02:49.7]} 6. Be2 {[%clk 0:02:46.3]} 6... Nh6 {[%clk 0:02:48.3]}
7. dxe5 {[%clk 0:02:42.2]} 7... dxe5 {[%clk 0:02:46.9]} 8. O-O {[%clk
0:02:36.2]} 8... O-O {[%clk 0:02:42.1]} 9. h3 {[%clk 0:02:26.6]} 9... c6 {[%clk
0:02:38.5]} 10. Be3 {[%clk 0:02:25.5]} 10... f6 {[%clk 0:02:33.8]} 11. c5 {[%clk
0:02:24.9]} 11... Nf7 {[%clk 0:02:32.6]} 12. Nd2 {[%clk 0:02:23.6]} 12... Qe7
{[%clk 0:02:30.1]} 13. b4 {[%clk 0:02:22.6]} 13... f5 {[%clk 0:02:28.1]} 14. Nc4
{[%clk 0:02:17.3]} 14... Nf6 {[%clk 0:02:23.2]} 15. Qc2 {[%clk 0:01:54.4]} 15...
f4 {[%clk 0:02:08.7]} 16. Bc1 {[%clk 0:01:51.3]} 16... Ng5 {[%clk 0:01:57]} 17.
Kh2 {[%clk 0:01:36.2]} 17... h5 {[%clk 0:01:42.9]} 18. Nd6 {[%clk 0:01:26.8]}
18... Be6 {[%clk 0:01:38.6]} 19. Bc4 {[%clk 0:01:24.3]} 19... Kh7 {[%clk
0:01:10.5]} 20. Bxe6 {[%clk 0:01:22.5]} 20... Nxe6 {[%clk 0:01:09.6]} 21. Ne2
{[%clk 0:01:20.8]} 21... a5 {[%clk 0:01:00]} 22. Bd2 {[%clk 0:01:13.3]} 22...
axb4 {[%clk 0:00:42.2]} 23. Bxb4 {[%clk 0:01:14.2]} 23... Ng4+ {[%clk
0:00:29.2]} 24. hxg4 {[%clk 0:01:11.7]} 24... Qh4+ {[%clk 0:00:27.9]} 25. Kg1
{[%clk 0:01:11.7]} 25... hxg4 {[%clk 0:00:28.3]} 26. g3 {[%clk 0:01:05.5]} 26...
Qh3 {[%clk 0:00:26.2]} 27. f3 {[%clk 0:00:54.1]} 27... fxg3 {[%clk 0:00:13.5]}
28. Nxg3 {[%clk 0:00:51.1]} 28... Qxg3+ {[%clk 0:00:13.6]} 29. Qg2 {[%clk
0:00:51.3]} 29... Qxg2+ {[%clk 0:00:12]} 30. Kxg2 {[%clk 0:00:52.2]} 30... gxf3+
{[%clk 0:00:11.7]} 31. Rxf3 {[%clk 0:00:53.1]} 31... Nf4+ {[%clk 0:00:11.8]} 32.
Kh2 {[%clk 0:00:41.7]} 32... Bf6 {[%clk 0:00:11.8]} 33. Raf1 {[%clk 0:00:39.4]}
33... Rh8 {[%clk 0:00:11.3]} 34. Kg1 {[%clk 0:00:36.2]} 34... Rxa2 {[%clk
0:00:10.7]} 35. R1f2 {[%clk 0:00:34.1]} 35... Rxf2 {[%clk 0:00:09.7]} 36. Kxf2
{[%clk 0:00:33.9]} 36... Kg7 {[%clk 0:00:10.1]} 37. Nxb7 {[%clk 0:00:33.1]}
37... Rb8 {[%clk 0:00:09.5]} 38. Na5 {[%clk 0:00:32.7]} 38... Rxb4 {[%clk
0:00:09.4]} 39. Nxc6 {[%clk 0:00:33.1]} 39... Rb2+ {[%clk 0:00:09.1]} 40. Kf1
{[%clk 0:00:32.4]} 40... Rc2 {[%clk 0:00:09.2]} 41. Nb4 {[%clk 0:00:30.5]} 41...
Rxc5 {[%clk 0:00:09]} 42. Ke1 {[%clk 0:00:24.8]} 42... Rc4 {[%clk 0:00:08.9]}
43. Nd5 {[%clk 0:00:22.5]} 43... Rxe4+ {[%clk 0:00:08.6]} 44. Ne3 {[%clk
0:00:20.2]} 44... Rxe3+ {[%clk 0:00:08.9]} 45. Rxe3 {[%clk 0:00:20]} 45... Ng2+
{[%clk 0:00:09.5]} 46. Kf2 {[%clk 0:00:20.9]} 46... Nxe3 {[%clk 0:00:10.1]} 47.
Kxe3 {[%clk 0:00:21.8]} 47... Kf7 {[%clk 0:00:10.6]} 48. Ke4 {[%clk 0:00:22.1]}
48... Ke6 {[%clk 0:00:11.5]} 49. Kf3 {[%clk 0:00:21.6]} 49... Kf5 {[%clk
0:00:12]} 0-1

[Event "*** Titled Tuesday Blitz"]
[Site "Chess.com"]
[Date "2020.12.01"]
[Round "1"]
[White "Kaslask"]
[Black "GregShahade"]
[Result "0-1"]
[WhiteElo "2351"]
[BlackElo "2695"]
[TimeControl "180+1"]
[EndTime "10:07:35 PST"]
[Termination "GregShahade won on time"]

1. d4 {[%clk 0:03:00.6]} 1... Nf6 {[%clk 0:02:59.7]} 2. c4 {[%clk 0:03:00]} 2...
g6 {[%clk 0:03:00]} 3. Nc3 {[%clk 0:02:59]} 3... d5 {[%clk 0:03:00.3]} 4. cxd5
{[%clk 0:02:57.5]} 4... Nxd5 {[%clk 0:03:01.2]} 5. Bd2 {[%clk 0:02:57.1]} 5...
Nb6 {[%clk 0:03:00.6]} 6. e3 {[%clk 0:02:46.4]} 6... Bg7 {[%clk 0:02:58.6]} 7.
f4 {[%clk 0:02:45.9]} 7... O-O {[%clk 0:02:54.9]} 8. Nf3 {[%clk 0:02:42.3]} 8...
c5 {[%clk 0:02:54.1]} 9. dxc5 {[%clk 0:02:41.4]} 9... N6d7 {[%clk 0:02:51]} 10.
b4 {[%clk 0:02:27.7]} 10... a5 {[%clk 0:02:50.1]} 11. b5 {[%clk 0:02:27.8]}
11... Nxc5 {[%clk 0:02:48.9]} 12. Qc2 {[%clk 0:02:23]} 12... Bf5 {[%clk
0:02:45.1]} 13. Qd1 {[%clk 0:02:00.3]} 13... Nd3+ {[%clk 0:02:38.5]} 14. Bxd3
{[%clk 0:01:55]} 14... Qxd3 {[%clk 0:02:39.4]} 15. Rc1 {[%clk 0:01:53.9]} 15...
Nd7 {[%clk 0:02:30.4]} 16. Qe2 {[%clk 0:01:52.7]} 16... Nc5 {[%clk 0:02:30.2]}
17. Nd1 {[%clk 0:01:38.8]} 17... Qa3 {[%clk 0:01:52.5]} 18. Nf2 {[%clk
0:01:36.2]} 18... Nd3+ {[%clk 0:01:51]} 19. Nxd3 {[%clk 0:01:34.7]} 19... Bxd3
{[%clk 0:01:51.9]} 20. Qd1 {[%clk 0:01:25.5]} 20... Rac8 {[%clk 0:01:49.2]} 21.
Kf2 {[%clk 0:01:13.4]} 21... Bxb5 {[%clk 0:01:37.1]} 22. Rxc8 {[%clk 0:01:04.1]}
22... Rxc8 {[%clk 0:01:38]} 23. Qb1 {[%clk 0:01:03.1]} 23... Ba6 {[%clk
0:01:27.3]} 24. Rc1 {[%clk 0:00:51.5]} 24... Rxc1 {[%clk 0:01:26.2]} 25. Bxc1
{[%clk 0:00:39.5]} 25... Qc5 {[%clk 0:01:16.4]} 26. Bd2 {[%clk 0:00:37.9]} 26...
h6 {[%clk 0:01:13]} 27. Qb3 {[%clk 0:00:34.6]} 27... b6 {[%clk 0:01:03.7]} 28.
Qa4 {[%clk 0:00:33.6]} 28... Bb5 {[%clk 0:01:03]} 29. Qe4 {[%clk 0:00:32.5]}
29... Bc6 {[%clk 0:01:02.3]} 30. Qd3 {[%clk 0:00:31.1]} 30... Bd5 {[%clk
0:00:57.1]} 31. a3 {[%clk 0:00:28.6]} 31... e6 {[%clk 0:00:52]} 32. Ne5 {[%clk
0:00:23.7]} 32... Bxe5 {[%clk 0:00:44.6]} 33. fxe5 {[%clk 0:00:23.1]} 33... Qc6
{[%clk 0:00:45.3]} 34. Qd4 {[%clk 0:00:19.8]} 34... Bxg2 {[%clk 0:00:38.5]} 35.
e4 {[%clk 0:00:18.7]} 35... Bxe4 {[%clk 0:00:29.1]} 36. Qd8+ {[%clk 0:00:17.8]}
36... Kh7 {[%clk 0:00:29.3]} 37. Qh4 {[%clk 0:00:13.8]} 37... Qc5+ {[%clk
0:00:20.6]} 38. Be3 {[%clk 0:00:12.3]} 38... Qxe5 {[%clk 0:00:13.9]} 39. Qxh6+
{[%clk 0:00:10.4]} 39... Kg8 {[%clk 0:00:14.2]} 40. Qf4 {[%clk 0:00:10.9]} 40...
Qb2+ {[%clk 0:00:13.4]} 41. Kg3 {[%clk 0:00:09.6]} 41... Qg2+ {[%clk 0:00:12.6]}
42. Kh4 {[%clk 0:00:09.7]} 42... Bf5 {[%clk 0:00:12.5]} 43. Qg3 {[%clk
0:00:07.9]} 43... Qe4+ {[%clk 0:00:11.7]} 44. Kg5 {[%clk 0:00:06.4]} 44... Kg7
{[%clk 0:00:08.8]} 0-1

[Event "*** Titled Tuesday Blitz"]
[Site "Chess.com"]
[Date "2020.12.01"]
[Round "1"]
[White "Das_Virus_2020"]
[Black "hansen"]
[Result "0-1"]
[WhiteElo "2441"]
[BlackElo "2921"]
[TimeControl "180+1"]
[EndTime "10:07:36 PST"]
[Termination "hansen won by resignation"]

1. e4 {[%clk 0:02:55.4]} 1... c5 {[%clk 0:02:35.2]} 2. c3 {[%clk 0:02:53.2]}
2... Nf6 {[%clk 0:02:34.7]} 3. e5 {[%clk 0:02:52.6]} 3... Nd5 {[%clk 0:02:33.2]}
4. Nf3 {[%clk 0:02:52.7]} 4... Nc6 {[%clk 0:02:33.5]} 5. d4 {[%clk 0:02:51.8]}
5... cxd4 {[%clk 0:02:30.2]} 6. cxd4 {[%clk 0:02:52.7]} 6... d6 {[%clk
0:02:29.3]} 7. Bc4 {[%clk 0:02:52.6]} 7... e6 {[%clk 0:02:29.2]} 8. O-O {[%clk
0:02:42.7]} 8... Be7 {[%clk 0:02:29]} 9. Nc3 {[%clk 0:02:36.8]} 9... Nxc3 {[%clk
0:02:28.7]} 10. bxc3 {[%clk 0:02:36.3]} 10... dxe5 {[%clk 0:02:28.8]} 11. Nxe5
{[%clk 0:02:31.3]} 11... Nxe5 {[%clk 0:02:27.8]} 12. dxe5 {[%clk 0:02:32.2]}
12... Qc7 {[%clk 0:02:12.4]} 13. Bb5+ {[%clk 0:02:30]} 13... Kf8 {[%clk
0:02:12.4]} 14. Qd4 {[%clk 0:02:14.4]} 14... b6 {[%clk 0:02:00.3]} 15. Be3
{[%clk 0:02:04.6]} 15... Bb7 {[%clk 0:01:57.8]} 16. Rfd1 {[%clk 0:01:35.2]}
16... h5 {[%clk 0:01:52.5]} 17. a4 {[%clk 0:01:25.8]} 17... Rd8 {[%clk
0:01:48.7]} 18. Qf4 {[%clk 0:00:54.5]} 18... Rxd1+ {[%clk 0:01:45.2]} 19. Rxd1
{[%clk 0:00:53.6]} 19... g5 {[%clk 0:01:45.8]} 20. Qd4 {[%clk 0:00:43.8]} 20...
Kg7 {[%clk 0:01:46]} 21. Qd7 {[%clk 0:00:43.1]} 21... Rc8 {[%clk 0:01:45.6]} 22.
Qxc7 {[%clk 0:00:42.3]} 22... Rxc7 {[%clk 0:01:46.3]} 23. Rd7 {[%clk 0:00:42]}
23... Rxd7 {[%clk 0:01:41]} 24. Bxd7 {[%clk 0:00:42.9]} 24... Kg6 {[%clk
0:01:41.5]} 25. Bd4 {[%clk 0:00:39.2]} 25... g4 {[%clk 0:01:29.6]} 26. h3 {[%clk
0:00:22.3]} 26... gxh3 {[%clk 0:01:20.8]} 27. gxh3 {[%clk 0:00:23.2]} 27... Bg5
{[%clk 0:01:21.3]} 28. Kh2 {[%clk 0:00:18.9]} 28... Bf4+ {[%clk 0:01:21.1]} 29.
Kg1 {[%clk 0:00:18.8]} 29... Bf3 {[%clk 0:01:16.9]} 30. Be8 {[%clk 0:00:18.5]}
30... h4 {[%clk 0:01:08]} 31. Kf1 {[%clk 0:00:18.4]} 31... Kf5 {[%clk
0:01:02.3]} 32. Bxf7 {[%clk 0:00:17]} 32... Bc6 {[%clk 0:00:56.8]} 33. Bh5
{[%clk 0:00:14.1]} 33... Bxe5 {[%clk 0:00:52.2]} 34. Bg4+ {[%clk 0:00:13.4]}
34... Kf6 {[%clk 0:00:52.8]} 35. Bxe5+ {[%clk 0:00:12.6]} 35... Kxe5 {[%clk
0:00:53.1]} 36. Bd1 {[%clk 0:00:12.4]} 36... Kf4 {[%clk 0:00:51.7]} 37. Bc2
{[%clk 0:00:10.5]} 37... e5 {[%clk 0:00:49.4]} 38. Bb3 {[%clk 0:00:10.5]} 38...
b5 {[%clk 0:00:44.3]} 39. a5 {[%clk 0:00:09.6]} 39... Bd7 {[%clk 0:00:29.7]} 40.
Kg2 {[%clk 0:00:08.9]} 40... e4 {[%clk 0:00:30.3]} 41. Bd5 {[%clk 0:00:08.2]}
41... e3 {[%clk 0:00:29.7]} 42. fxe3+ {[%clk 0:00:07.6]} 42... Kxe3 {[%clk
0:00:30.6]} 43. c4 {[%clk 0:00:06.7]} 43... Kd4 {[%clk 0:00:21.2]} 44. cxb5
{[%clk 0:00:04.5]} 44... Kxd5 {[%clk 0:00:21.3]} 45. b6 {[%clk 0:00:04.8]} 45...
axb6 {[%clk 0:00:21.7]} 46. axb6 {[%clk 0:00:05.7]} 46... Kc6 {[%clk 0:00:21.3]}
47. Kf3 {[%clk 0:00:04.5]} 47... Bxh3 {[%clk 0:00:21]} 48. Kf4 {[%clk
0:00:04.8]} 48... Bc8 {[%clk 0:00:20.3]} 0-1

[Event "*** Titled Tuesday Blitz"]
[Site "Chess.com"]
[Date "2020.12.01"]
[Round "1"]
[White "akanga001"]
[Black "Piotrek1979"]
[Result "0-1"]
[WhiteElo "1947"]
[BlackElo "2467"]
[TimeControl "180+1"]
[EndTime "10:07:37 PST"]
[Termination "Piotrek1979 won on time"]

1. d4 {[%clk 0:02:42.9]} 1... Nf6 {[%clk 0:02:39.9]} 2. c4 {[%clk 0:02:43.1]}
2... d6 {[%clk 0:02:39]} 3. Nc3 {[%clk 0:02:41.6]} 3... Nbd7 {[%clk 0:02:36]} 4.
e4 {[%clk 0:02:41.5]} 4... e5 {[%clk 0:02:34.5]} 5. d5 {[%clk 0:02:40.1]} 5...
a5 {[%clk 0:02:29.6]} 6. h3 {[%clk 0:02:39]} 6... Nc5 {[%clk 0:02:22.9]} 7. Bd3
{[%clk 0:02:35.1]} 7... Be7 {[%clk 0:02:21.9]} 8. Bc2 {[%clk 0:02:27.3]} 8...
O-O {[%clk 0:02:17]} 9. Nf3 {[%clk 0:02:26.8]} 9... Ne8 {[%clk 0:02:15.8]} 10.
Qe2 {[%clk 0:02:22.9]} 10... g6 {[%clk 0:02:14.1]} 11. Bh6 {[%clk 0:02:19.5]}
11... Ng7 {[%clk 0:02:13.8]} 12. g4 {[%clk 0:02:14.2]} 12... Bd7 {[%clk
0:02:13]} 13. O-O-O {[%clk 0:02:12.2]} 13... a4 {[%clk 0:02:06.8]} 14. Rdg1
{[%clk 0:02:10.2]} 14... f6 {[%clk 0:02:02]} 15. h4 {[%clk 0:02:09.4]} 15... Ra6
{[%clk 0:01:57.6]} 16. Qe3 {[%clk 0:01:52.4]} 16... Rb6 {[%clk 0:01:55.1]} 17.
Nd2 {[%clk 0:01:30.4]} 17... Qa8 {[%clk 0:01:32.5]} 18. f4 {[%clk 0:01:25.8]}
18... exf4 {[%clk 0:01:26.9]} 19. Qxf4 {[%clk 0:01:19.9]} 19... Qa5 {[%clk
0:01:27.8]} 20. Qe3 {[%clk 0:01:00.3]} 20... Qb4 {[%clk 0:01:18.2]} 21. Nd1
{[%clk 0:00:55.1]} 21... Ra8 {[%clk 0:01:03.9]} 22. Qc3 {[%clk 0:00:54]} 22...
c6 {[%clk 0:00:54.9]} 23. Qxb4 {[%clk 0:00:52.1]} 23... Rxb4 {[%clk 0:00:51.3]}
24. Be3 {[%clk 0:00:43.9]} 24... cxd5 {[%clk 0:00:47.8]} 25. exd5 {[%clk
0:00:42.1]} 25... f5 {[%clk 0:00:47.9]} 26. Bd4 {[%clk 0:00:41]} 26... fxg4
{[%clk 0:00:44.4]} 27. Re1 {[%clk 0:00:40.5]} 27... Re8 {[%clk 0:00:40.3]} 28.
Bc3 {[%clk 0:00:29.2]} 28... Rb6 {[%clk 0:00:39]} 29. Re2 {[%clk 0:00:22]} 29...
Bd8 {[%clk 0:00:35.6]} 30. Rhe1 {[%clk 0:00:21.2]} 30... Rxe2 {[%clk 0:00:34.4]}
31. Rxe2 {[%clk 0:00:22.1]} 31... Bxh4 {[%clk 0:00:33.7]} 32. Ne4 {[%clk
0:00:18.5]} 32... Nxe4 {[%clk 0:00:32.5]} 33. Rxe4 {[%clk 0:00:16.2]} 33... Nf5
{[%clk 0:00:33.4]} 34. Ne3 {[%clk 0:00:11.5]} 34... Nxe3 {[%clk 0:00:32]} 35.
Rxe3 {[%clk 0:00:09.6]} 35... Bg5 {[%clk 0:00:32.4]} 36. Bd4 {[%clk 0:00:09.6]}
36... Ra6 {[%clk 0:00:30.9]} 37. Kd2 {[%clk 0:00:07.5]} 37... g3 {[%clk
0:00:29.8]} 38. Ke2 {[%clk 0:00:06.5]} 38... Bxe3 {[%clk 0:00:29.4]} 39. Bxe3
{[%clk 0:00:07.4]} 39... Bg4+ {[%clk 0:00:27.8]} 40. Kf1 {[%clk 0:00:05.5]}
40... Ra8 {[%clk 0:00:28.7]} 41. Kg2 {[%clk 0:00:04.4]} 41... Re8 {[%clk
0:00:28.8]} 42. Bf4 {[%clk 0:00:02.7]} 42... Re2+ {[%clk 0:00:28.9]} 43. Kxg3
{[%clk 0:00:03.1]} 43... Rxc2 {[%clk 0:00:28.4]} 44. Kxg4 {[%clk 0:00:04]} 44...
Rxc4 {[%clk 0:00:28.7]} 45. Kg5 {[%clk 0:00:02.2]} 45... Rxf4 {[%clk 0:00:28.4]}
0-1